bitfinex/quotes_BTCUSD_20260308
["timestamp","ask_amount","ask_price","bid_price","bid_amount"]
[1772981151653,0.03172892,67057.0,67051.0,0.0002]
[1772981151855,0.03172892,67057.0,67054.0,0.0002]
[1772981152676,0.03172892,67057.0,67051.0,0.0002]
[1772981152879,0.03172892,67057.0,67052.0,0.00152]
[1772981153489,0.07456231,67058.0,67052.0,0.00152]
[1772981153688,0.07456231,67059.0,67052.0,0.07608893]
[1772981154680,0.07456231,67059.0,67051.0,0.0002]
[1772981154681,0.03166628,67058.0,67053.0,0.00152]
[1772981155838,0.1061391,67057.0,67053.0,0.00152]
[1772981156069,0.03157567,67056.0,67053.0,0.00152]
[1772981156730,0.03157567,67056.0,67045.0,0.07457587]
[1772981156731,0.03157567,67055.0,67047.0,0.00152]
[1772981156924,0.03157567,67055.0,67048.0,0.00152]
[1772981157157,0.03157567,67055.0,67032.0,0.07459124]
[1772981157158,0.03157567,67055.0,67047.0,0.00152]
[1772981157695,0.07456676,67054.0,67047.0,0.00152]
[1772981157917,0.03147756,67053.0,67047.0,0.00152]
[1772981158120,0.03132602,67053.0,67048.0,0.00152]
[1772981158323,0.03140179,67053.0,67048.0,0.00152]
[1772981160255,0.03140179,67053.0,67039.0,0.22943541]
[1772981160436,0.03130086,67051.0,67040.0,0.07610233]
[1772981160623,0.03130086,67051.0,67041.0,0.00152]
[1772981161233,0.03130086,67051.0,67045.0,0.0002]
[1772981162579,0.0312614,67049.0,67045.0,0.0002]
[1772981162750,0.0312614,67049.0,67041.0,0.07610118]
[1772981162751,0.0312614,67049.0,67041.0,0.00152]
[1772981162946,0.0745612,67060.0,67042.0,0.14567704]
[1772981163172,0.00022001,67062.0,67042.0,0.14567704]
[1772981163373,0.00033941,67069.0,67042.0,0.14567704]
[1772981163572,0.00018941,67069.0,67042.0,0.14567704]
[1772981164005,0.0004,67075.0,67042.0,0.14567704]
[1772981164198,0.00575,67079.0,67042.0,0.14567704]
[1772981164199,0.00575,67079.0,67051.0,0.19250954]
[1772981164429,0.08028918,67079.0,67052.0,0.15245605]
[1772981164567,0.08028918,67079.0,67054.0,0.15093605]
[1772981165327,0.08028925,67079.0,67054.0,0.15093605]
[1772981166608,0.08028925,67079.0,67055.0,0.07456565]
[1772981166929,0.08028925,67079.0,67056.0,0.15093605]
[1772981168019,0.00575,67079.0,67056.0,0.15093605]
[1772981168598,0.08028912,67079.0,67056.0,0.15093605]
[1772981168800,0.08028912,67079.0,67058.0,0.15093605]
[1772981169005,0.03015655,67078.0,67060.0,0.15093605]
[1772981170262,0.03015655,67078.0,67060.0,0.15193605]
[1772981170985,0.03015655,67078.0,67062.0,0.15093605]
[1772981171189,0.00597001,67079.0,67062.0,0.15093605]
[1772981171563,0.080509,67079.0,67062.0,0.15093605]
[1772981171935,0.00597001,67079.0,67062.0,0.15093605]
[1772981172393,0.08050921,67079.0,67062.0,0.15093605]
[1772981172769,0.00597001,67079.0,67062.0,0.15093605]
[1772981172983,0.00597001,67079.0,67064.0,0.07455564]
[1772981173183,0.15355854,67077.0,67063.0,0.07455564]
[1772981173516,0.15355854,67077.0,67056.0,0.15093605]
[1772981173517,0.03015655,67075.0,67065.0,0.00076753]
[1772981173650,0.03015655,67075.0,67066.0,0.00152]
[1772981173856,0.03015655,67075.0,67067.0,0.00152]
[1772981176925,0.10470108,67074.0,67067.0,0.00152]
[1772981177130,0.03015655,67073.0,67067.0,0.00152]
[1772981178105,0.07454453,67075.0,67067.0,0.0760712]
[1772981178257,0.00597001,67079.0,67068.0,0.15093605]
[1772981179009,0.00597001,67079.0,67069.0,0.22548614]
[1772981179534,0.0745324,67085.0,67069.0,0.22548614]
[1772981179535,0.0001085,67112.0,67080.0,1.165386]
[1772981179702,0.00018797,67112.0,67085.0,0.15093605]
[1772981179844,0.00018797,67112.0,67081.0,0.51622954]
[1772981179845,0.00018797,67112.0,67086.0,0.0108578]
[1772981180051,0.01476614,67111.0,67088.0,0.15093605]
[1772981180252,0.01476614,67111.0,67090.0,0.15093605]
[1772981180471,0.01476614,67111.0,67092.0,0.15093605]
[1772981180670,0.01476614,67111.0,67094.0,0.15093605]
[1772981180875,0.07450454,67110.0,67096.0,0.07452009]
[1772981181074,0.08942675,67110.0,67097.0,0.0108578]
[1772981181278,0.08942675,67110.0,67098.0,0.0108578]
[1772981181498,0.01492221,67110.0,67099.0,0.0108578]
[1772981181693,0.01492221,67110.0,67100.0,0.0108578]
[1772981181854,0.01492221,67110.0,67101.0,0.0123778]
[1772981182054,0.01492221,67110.0,67102.0,0.0108578]
[1772981182358,0.01492221,67110.0,67103.0,0.0108578]
[1772981182569,0.01492221,67110.0,67104.0,0.0108578]
[1772981182813,0.01492221,67110.0,67105.0,0.0108578]
[1772981183005,0.01492221,67109.0,67106.0,0.0108578]
[1772981183240,0.01492221,67109.0,67107.0,0.0123778]
[1772981183468,0.01492221,67109.0,67094.0,0.07452009]
[1772981183469,0.01492221,67107.0,67088.0,0.07452897]
[1772981183728,0.07450558,67110.0,67088.0,0.07756897]
[1772981183729,0.01492221,67103.0,67088.0,0.07756897]
[1772981183956,0.07450558,67110.0,67088.0,0.07756897]
[1772981183957,0.01492221,67101.0,67089.0,0.00152]
[1772981184953,0.01492221,67101.0,67088.0,0.07756897]
[1772981185169,0.01492221,67100.0,67091.0,0.07452564]
[1772981187586,0.01492221,67098.0,67087.0,0.0745292]
[1772981187896,0.01492221,67098.0,67088.0,0.00456]
[1772981188262,0.07451617,67100.0,67088.0,0.00456]
[1772981188484,0.07451617,67100.0,67089.0,0.15093605]
[1772981189207,0.07451533,67101.0,67090.0,0.07452675]
[1772981189811,0.01492221,67100.0,67091.0,0.00304]
[1772981191698,0.07451675,67099.0,67091.0,0.07756511]
[1772981192075,0.07450922,67106.0,67092.0,0.15093605]
[1772981192423,0.08964679,67110.0,67092.0,0.15093605]
[1772981193443,0.0747248,67110.0,67092.0,0.15093605]
[1772981193939,0.0747248,67110.0,67094.0,0.14198207]
[1772981193940,0.090495,67110.0,67094.0,0.14198207]
[1772981194149,0.090495,67110.0,67096.0,0.14198207]
[1772981195503,0.07462401,67112.0,67097.0,0.00304]
[1772981195504,0.00011947,67112.0,67097.0,0.00304]
[1772981195904,0.00011947,67112.0,67100.0,0.14198207]
[1772981196062,0.00011947,67112.0,67102.0,0.14198207]
[1772981196432,0.00011947,67112.0,67103.0,0.00304]
[1772981196638,0.00011947,67112.0,67103.0,0.14502207]
[1772981197502,0.00022001,67124.0,67104.0,0.14198207]
[1772981197784,0.07510753,67124.0,67104.0,0.14198207]
[1772981197991,0.0157702,67123.0,67106.0,0.14198207]
[1772981198282,0.0157702,67123.0,67108.0,0.14198207]
[1772981200001,0.09026096,67123.0,67109.0,0.07446565]
[1772981200216,0.09026096,67123.0,67110.0,0.14198207]
[1772981200415,0.0157702,67123.0,67110.0,0.14502207]
[1772981200622,0.09026046,67123.0,67110.0,0.14502207]
[1772981201374,0.09026045,67123.0,67110.0,0.14602207]
[1772981201589,0.09026045,67123.0,67110.0,0.14502207]
[1772981202197,0.0157702,67123.0,67111.0,0.07450343]
[1772981202404,0.0157702,67123.0,67111.0,0.2164855]
[1772981202814,0.09026097,67123.0,67111.0,0.2164855]
[1772981203016,0.09026097,67123.0,67108.0,0.07450565]
[1772981203017,0.146449,67122.0,67108.0,4.6e-07]
[1772981203225,0.0157702,67119.0,67108.0,0.07450691]
[1772981203462,0.0157702,67117.0,67109.0,0.00152]
[1772981203964,0.0157702,67117.0,67110.0,0.00152]
[1772981204088,0.01273019,67117.0,67110.0,0.00152]
[1772981204294,0.01273019,67117.0,67109.0,0.07450514]
[1772981204295,0.0142502,67115.0,67109.0,0.07450514]
[1772981204488,0.0142502,67115.0,67110.0,0.00152]
[1772981204906,0.0142502,67115.0,67111.0,0.00152]
[1772981205105,0.0142502,67113.0,67100.0,0.07451485]
[1772981205324,0.0142502,67113.0,67101.0,0.00456]
[1772981205545,0.0142502,67113.0,67106.0,0.00015]
[1772981205705,0.0142502,67111.0,67106.0,0.00152]
[1772981205891,0.0142502,67108.0,67106.0,0.00152]
[1772981206315,0.08875807,67107.0,67106.0,0.00152]
[1772981206537,0.0142502,67107.0,67106.0,0.00152]
[1772981206715,0.00513019,67107.0,67106.0,0.00152]
[1772981206917,0.0071251,67107.0,67106.0,0.00152]
[1772981207123,0.0025651,67107.0,67106.0,0.00152]
[1772981207453,0.07450232,67112.0,67106.0,0.00152]
[1772981207617,0.07934687,67113.0,67106.0,0.07906888]
[1772981208013,0.07449233,67121.0,67107.0,0.00152]
[1772981208218,0.07470052,67132.0,67109.0,0.14198207]
[1772981208219,0.00542584,67128.0,67109.0,0.14198207]
[1772981208421,0.00542584,67128.0,67108.0,0.07450676]
[1772981208422,0.07471075,67123.0,67108.0,0.07450676]
[1772981208775,0.00484533,67120.0,67109.0,0.00456]
[1772981209123,0.07471075,67123.0,67110.0,0.00152]
[1772981209124,0.00484533,67116.0,67110.0,0.00152]
[1772981209330,0.00152,67119.0,67103.0,0.26022146]
[1772981209531,0.00484533,67118.0,67104.0,0.00152]
[1772981209938,0.00484533,67118.0,67105.0,0.00152]
[1772981210133,0.07449677,67117.0,67106.0,0.07450898]
[1772981210336,0.00484533,67116.0,67106.0,0.07450898]
[1772981210987,0.00484533,67116.0,67102.0,0.07451307]
[1772981210988,0.00484533,67114.0,67102.0,0.11823939]
[1772981211203,0.00484533,67111.0,67107.0,0.00152]
[1772981211409,0.00484533,67109.0,67108.0,0.00152]
[1772981211561,0.00484533,67109.0,67098.0,0.19275721]
[1772981211758,0.00484533,67109.0,67099.0,0.00152]
[1772981211970,0.00152,67108.0,67099.0,0.00152]
[1772981212161,0.00152,67108.0,67102.0,0.07451342]
[1772981212370,0.07450356,67111.0,67102.0,0.07451342]
[1772981212564,0.07450356,67111.0,67102.0,0.21649549]
[1772981213538,0.07450356,67111.0,67098.0,0.0003098]
[1772981213539,0.00484533,67110.0,67097.0,0.11823939]
[1772981213748,0.00484533,67110.0,67092.0,0.17804081]
[1772981213749,0.00484533,67109.0,67098.0,0.00152]
[1772981214917,0.00484533,67107.0,67098.0,0.00252]
[1772981215126,0.00484533,67107.0,67098.0,0.07703702]
[1772981215539,0.00484533,67107.0,67098.0,0.00252]
[1772981215960,0.00484533,67107.0,67098.0,0.00152]
[1772981216887,0.07450898,67106.0,67098.0,0.07603694]
[1772981217869,0.07450898,67106.0,67098.0,0.00152]
[1772981218082,0.07450898,67106.0,67099.0,0.00152]
[1772981218859,0.07450898,67106.0,67097.0,0.0745189]
[1772981219055,0.07450898,67106.0,67100.0,0.00152]
[1772981221088,0.22094688,67116.0,67100.0,0.00152]
[1772981223193,0.0747157,67118.0,67106.0,0.14595084]
[1772981223394,0.0747157,67118.0,67108.0,0.005]
[1772981224993,0.00022001,67118.0,67109.0,0.15108506]
[1772981225194,0.07471605,67118.0,67114.0,0.15108506]
[1772981225447,0.07449122,67122.0,67115.0,0.00652]
[1772981226874,0.07449122,67122.0,67115.0,0.00152]
[1772981227239,0.07449122,67122.0,67116.0,0.005]
[1772981227474,0.07449122,67122.0,67115.0,0.00152]
[1772981227669,0.07449122,67122.0,67116.0,0.00152]
[1772981228848,0.00022001,67118.0,67116.0,0.00152]
[1772981230867,0.00022001,67118.0,67111.0,0.005]
[1772981230868,0.07449677,67117.0,67111.0,0.005]
[1772981231124,0.07449677,67117.0,67113.0,0.005]
[1772981233187,0.07471649,67118.0,67113.0,0.005]
[1772981233597,0.07471649,67118.0,67112.0,0.00152]
[1772981233792,0.07471649,67118.0,67110.0,0.07450418]
[1772981233966,0.07467649,67118.0,67113.0,0.00152]
[1772981235423,0.00018001,67118.0,67113.0,0.00152]
[1772981236855,0.00018001,67118.0,67114.0,0.00152]
[1772981237276,0.00018001,67118.0,67108.0,0.07450454]
[1772981237491,0.00018001,67118.0,67109.0,0.00152]
[1772981239953,0.15592699,67118.0,67104.0,0.0745112]
[1772981240215,0.15592699,67118.0,67101.0,0.07451359]
[1772981240461,0.15592699,67118.0,67105.0,0.00152]
[1772981241983,0.00018001,67118.0,67107.0,0.005]
[1772981244949,0.00018001,67118.0,67108.0,0.00152]
[1772981246045,0.00018001,67118.0,67109.0,0.005]
[1772981246268,0.00018001,67118.0,67110.0,0.005]
[1772981247372,0.00018001,67118.0,67110.0,0.0048333]
[1772981256938,0.00018001,67118.0,67109.0,0.0002]
[1772981258900,0.07509944,67123.0,67109.0,0.0002]
[1772981258901,0.07510767,67124.0,67110.0,0.14505979]
[1772981259420,0.00022001,67118.0,67110.0,0.14505979]
[1772981260273,0.00022001,67128.0,67112.0,0.17804081]
[1772981260274,0.07470564,67128.0,67112.0,0.17804081]
[1772981260420,0.07470564,67128.0,67113.0,0.14489309]
[1772981260421,0.07478323,67127.0,67113.0,0.14489309]
[1772981260622,0.07478323,67127.0,67115.0,0.14505979]
[1772981260841,0.07478323,67127.0,67116.0,0.07449788]
[1772981260842,0.00029708,67127.0,67116.0,0.07449788]
[1772981261039,0.07478319,67127.0,67116.0,0.07449788]
[1772981261653,0.07478293,67127.0,67116.0,0.07449788]
[1772981262239,0.07478293,67127.0,67117.0,0.14505979]
[1772981262240,0.00029708,67127.0,67117.0,0.14505979]
[1772981263191,0.00029708,67127.0,67118.0,0.07449566]
[1772981263425,0.00029708,67127.0,67119.0,0.14505979]
[1772981263627,0.00029708,67127.0,67120.0,0.00152]
[1772981264046,0.00029708,67127.0,67120.0,0.14641311]
[1772981265489,0.0747828,67127.0,67121.0,0.07449233]
[1772981265930,0.0747828,67127.0,67120.0,0.07449338]
[1772981266088,0.0747828,67127.0,67121.0,0.00152]
[1772981267593,0.0747828,67127.0,67121.0,0.0013533]
[1772981267802,0.0747828,67127.0,67115.0,0.14505979]
[1772981267803,0.01788408,67126.0,67112.0,0.07450199]
[1772981268009,0.01788408,67126.0,67113.0,0.00152]
[1772981268437,0.01788408,67126.0,67112.0,0.07450199]
[1772981268640,0.01788408,67126.0,67114.0,0.00152]
[1772981269470,0.00029708,67127.0,67115.0,0.14505979]
[1772981269680,0.00029708,67127.0,67116.0,0.07449788]
[1772981269928,0.00029708,67127.0,67117.0,0.14505979]
[1772981270534,0.07478283,67127.0,67117.0,0.14505979]
[1772981270736,0.00029708,67127.0,67117.0,0.14505979]
[1772981271981,0.00022001,67130.0,67119.0,0.14505979]
[1772981272157,0.00015,67140.0,67119.0,0.14505979]
[1772981272158,0.01788426,67138.0,67120.0,0.00152]
[1772981272304,0.0744747,67137.0,67121.0,0.14505979]
[1772981273001,0.07491094,67135.0,67121.0,0.14505979]
[1772981273203,0.0178805,67134.0,67120.0,0.00152]
[1772981273528,0.14919309,67133.0,67121.0,0.00152]
[1772981273733,0.0178805,67132.0,67121.0,0.00152]
[1772981274253,0.09236173,67131.0,67122.0,0.00152]
[1772981274483,0.00022001,67127.0,67122.0,0.00152]
[1772981275158,0.07448123,67132.0,67122.0,0.00152]
[1772981275361,0.07447954,67133.0,67122.0,0.00152]
[1772981276517,0.01656459,67132.0,67122.0,0.07601011]
[1772981278516,0.00022001,67134.0,67122.0,0.07601011]
[1772981278855,0.00043411,67135.0,67123.0,0.14505979]
[1772981280178,0.07447455,67139.0,67122.0,0.07601011]
[1772981280179,0.07447257,67139.0,67122.0,0.07601011]
[1772981280405,0.07447257,67139.0,67123.0,0.14505979]
[1772981280611,0.00015,67140.0,67125.0,0.14505979]
[1772981281642,0.00022001,67132.0,67125.0,0.14505979]
[1772981281830,0.00015,67140.0,67125.0,0.14505979]
[1772981282086,0.07446666,67145.0,67125.0,0.14505979]
[1772981282506,0.08323224,67146.0,67126.0,0.07448678]
[1772981282734,0.00833309,67145.0,67127.0,0.14505979]
[1772981283031,0.00833309,67145.0,67129.0,0.14694098]
[1772981284223,0.00833309,67145.0,67125.0,0.07448678]
[1772981284224,0.14607051,67139.0,67125.0,0.07448678]
[1772981284384,0.0083638,67138.0,67126.0,0.00152]
[1772981285004,0.07447255,67139.0,67127.0,0.07448567]
[1772981285207,0.08162644,67143.0,67128.0,0.14477054]
[1772981285447,0.00715741,67142.0,67128.0,0.14477054]
[1772981288133,0.07447014,67141.0,67129.0,0.07448345]
[1772981288335,0.00043411,67146.0,67130.0,0.14477054]
[1772981288536,0.0748988,67146.0,67130.0,0.14477054]
[1772981288741,0.00726356,67145.0,67129.0,0.07448345]
[1772981288946,0.0748988,67146.0,67130.0,0.00152]
[1772981288947,0.00022001,67138.0,67130.0,0.00152]
[1772981289155,0.00729282,67142.0,67130.0,0.00152]
[1772981289349,0.00729282,67142.0,67131.0,0.14477054]
[1772981289798,0.00043411,67146.0,67131.0,0.14477054]
[1772981290149,0.0012,67150.0,67132.0,0.14477054]
[1772981290349,0.07467837,67152.0,67132.0,0.14477054]
[1772981291145,0.0746785,67152.0,67132.0,0.14477054]
[1772981291367,0.07467805,67152.0,67132.0,0.14477054]
[1772981292383,0.07467805,67152.0,67134.0,0.14477054]
[1772981293380,0.07467862,67152.0,67134.0,0.14477054]
[1772981293577,0.07967862,67152.0,67134.0,0.14477054]
[1772981293777,0.14607051,67151.0,67133.0,0.07447901]
[1772981293999,0.005,67150.0,67134.0,0.00152]
[1772981294574,0.005,67148.0,67135.0,0.0759968]
[1772981295705,0.005,67148.0,67135.0,0.0744768]
[1772981296024,0.005,67148.0,67136.0,0.00152]
[1772981296169,0.005,67148.0,67135.0,0.0744768]
[1772981296375,0.005,67148.0,67137.0,0.00152]
[1772981296608,0.07446349,67147.0,67134.0,0.0744768]
[1772981296814,0.005,67146.0,67135.0,0.00152]
[1772981299063,0.07946505,67146.0,67136.0,0.07447569]
[1772981299566,0.00582168,67145.0,67136.0,0.07447569]
[1772981301341,0.08028805,67145.0,67136.0,0.07447569]
[1772981302163,0.00582168,67145.0,67136.0,0.07447569]
[1772981302366,0.08028743,67145.0,67136.0,0.07447569]
[1772981303408,0.0744647,67146.0,67137.0,0.14477054]
[1772981303811,0.00022001,67145.0,67136.0,0.07447569]
[1772981305416,0.07468645,67145.0,67136.0,0.07447569]
[1772981305762,0.07468645,67145.0,67137.0,0.00152]
[1772981307722,0.07468645,67145.0,67138.0,0.07447347]
[1772981308755,0.07468645,67145.0,67132.0,0.17804081]
[1772981308756,0.00575475,67144.0,67132.0,0.07447977]
[1772981308875,0.00575475,67144.0,67133.0,0.00152]
[1772981310596,0.00575475,67144.0,67136.0,0.0002]
[1772981310774,0.0801606,67144.0,67136.0,0.0002]
[1772981310938,0.01855635,67143.0,67136.0,0.0002]
[1772981311892,0.01855635,67151.0,67136.0,0.14497054]
[1772981312244,0.07467845,67152.0,67136.0,0.14497054]
[1772981312917,0.07467845,67152.0,67137.0,0.07447458]
[1772981313067,0.07467845,67152.0,67138.0,0.13373037]
[1772981313265,0.07467845,67152.0,67140.0,0.13373037]
[1772981314217,0.07467808,67152.0,67140.0,0.13373037]
[1772981314415,0.07479744,67152.0,67140.0,0.13373037]
[1772981315082,0.07479738,67152.0,67142.0,0.13373037]
[1772981315285,0.07479733,67152.0,67142.0,0.13373037]
[1772981315898,0.00033937,67152.0,67142.0,0.13373037]
[1772981316746,0.07479737,67152.0,67142.0,0.13373037]
[1772981317125,0.00033937,67152.0,67143.0,0.07446792]
[1772981317333,0.00033937,67152.0,67144.0,0.13521037]
[1772981317828,0.00033937,67152.0,67144.0,0.00148]
[1772981317829,0.0153505,67151.0,67144.0,0.00148]
[1772981318033,0.0153505,67151.0,67145.0,0.00148]
[1772981319717,0.00033937,67152.0,67146.0,0.07446459]
[1772981319915,0.00012,67155.0,67147.0,0.13373037]
[1772981320152,0.07485113,67157.0,67146.0,0.07446459]
[1772981320315,0.07467352,67158.0,67146.0,0.07446459]
[1772981320520,0.07467352,67158.0,67146.0,0.20819496]
[1772981321080,0.00022001,67158.0,67147.0,0.13373037]
[1772981321402,0.07467155,67158.0,67146.0,0.07446459]
[1772981321606,0.01567356,67157.0,67146.0,0.07446459]
[1772981322009,0.07445351,67156.0,67146.0,0.07446459]
[1772981322224,0.01567356,67156.0,67146.0,0.07446459]
[1772981322657,0.01567356,67156.0,67147.0,0.00148]
[1772981324257,0.01567356,67156.0,67148.0,0.07446238]
[1772981324667,0.09012772,67156.0,67148.0,0.07446238]
[1772981324869,0.01583387,67155.0,67148.0,0.07446238]
[1772981325758,0.01583387,67155.0,67149.0,0.00148]
[1772981327224,0.01583387,67155.0,67150.0,0.07446016]
[1772981327585,0.09050893,67155.0,67149.0,0.00148]
[1772981328005,0.01469161,67154.0,67149.0,0.00148]
[1772981328409,0.07467506,67155.0,67149.0,0.00148]
[1772981328676,0.07467506,67155.0,67150.0,0.00148]
[1772981329033,0.08956243,67155.0,67148.0,0.07446195]
[1772981329227,0.01510738,67155.0,67151.0,0.00148]
[1772981329638,0.01510738,67155.0,67151.0,0.07593826]
[1772981330095,0.01510738,67155.0,67151.0,0.07593885]
[1772981330845,0.01510738,67155.0,67152.0,0.00148]
[1772981331896,0.01510738,67155.0,67149.0,0.07446052]
[1772981332103,0.01510738,67155.0,67153.0,0.00148]
[1772981333839,0.0744524,67157.0,67153.0,0.00148]
[1772981334036,0.01499567,67156.0,67153.0,0.00148]
[1772981336397,0.08944925,67156.0,67151.0,0.0002]
[1772981336561,0.01516571,67155.0,67152.0,0.00148]
[1772981337360,0.01516571,67155.0,67151.0,0.0002]
[1772981337561,0.01516571,67155.0,67152.0,0.00148]
[1772981338008,0.01516571,67155.0,67153.0,0.00148]
[1772981338226,0.08962106,67155.0,67153.0,0.00148]
[1772981338418,0.07445535,67155.0,67151.0,0.0002]
[1772981338559,0.01533072,67155.0,67152.0,0.00148]
[1772981340988,0.01564945,67154.0,67152.0,0.00148]
[1772981341885,0.01564945,67152.0,67131.0,0.07448095]
[1772981342072,0.01564945,67148.0,67137.0,0.00148]
[1772981342276,0.04927783,67150.0,67136.0,0.00031936]
[1772981342277,0.0744657,67145.0,67136.0,0.00031936]
[1772981342480,0.01564945,67144.0,67137.0,0.00148]
[1772981344321,0.07446601,67145.0,67138.0,0.07447347]
[1772981344951,0.07946601,67145.0,67138.0,0.07447347]
[1772981345192,0.07446275,67148.0,67138.0,0.07447347]
[1772981345994,0.005,67147.0,67138.0,0.07447347]
[1772981346205,0.005,67147.0,67138.0,0.07467347]
[1772981346954,0.0746719,67158.0,67139.0,0.1371888]
[1772981347176,0.07467365,67156.0,67139.0,0.1371888]
[1772981347375,0.005,67155.0,67139.0,0.1371888]
[1772981349737,0.005,67155.0,67140.0,0.07447125]
[1772981349940,0.07945482,67155.0,67141.0,0.1371888]
[1772981350261,0.07445482,67155.0,67141.0,0.1371888]
[1772981350416,0.005,67154.0,67141.0,0.1371888]
[1772981351587,0.07445482,67155.0,67141.0,0.1371888]
[1772981351770,0.07445482,67155.0,67142.0,0.07446903]
[1772981351917,0.07445482,67155.0,67143.0,0.1386688]
[1772981352126,0.07467462,67156.0,67143.0,0.1386688]
[1772981352869,0.07482462,67156.0,67143.0,0.1386688]
[1772981353063,0.00037001,67156.0,67143.0,0.1386688]
[1772981353270,0.00022001,67158.0,67143.0,0.00148]
[1772981353484,0.07445259,67157.0,67144.0,0.1371888]
[1772981354106,0.07467212,67158.0,67146.0,0.1371888]
[1772981354625,0.005,67157.0,67145.0,0.0744657]
[1772981355525,0.00237734,67157.0,67145.0,0.0744657]
[1772981355686,0.00465899,67156.0,67145.0,0.0744657]
[1772981355890,0.00465899,67156.0,67146.0,0.00148]
[1772981356112,0.07445461,67155.0,67147.0,0.07446349]
[1772981356333,0.0791136,67155.0,67148.0,0.00148]
[1772981357054,0.07445461,67155.0,67148.0,0.00148]
[1772981357270,0.07445302,67157.0,67148.0,0.00148]
[1772981357974,0.00237734,67157.0,67148.0,0.1386688]
[1772981358125,0.07445351,67156.0,67148.0,0.07594158]
[1772981358329,0.07945351,67156.0,67148.0,0.07594158]
[1772981359488,0.07445351,67156.0,67148.0,0.07594158]
[1772981359681,0.005,67155.0,67148.0,0.07594158]
[1772981361474,0.00237734,67154.0,67148.0,0.07594158]
[1772981362696,0.07445351,67156.0,67148.0,0.07594158]
[1772981363812,0.00522,67155.0,67148.0,0.07594158]
[1772981366801,0.07445351,67156.0,67148.0,0.07594158]
[1772981367002,0.07445351,67157.0,67149.0,0.1371888]
[1772981368136,0.07467019,67159.0,67149.0,0.1371888]
[1772981368343,0.00022001,67159.0,67149.0,0.1371888]
[1772981368665,0.07444242,67166.0,67148.0,0.07594158]
[1772981368898,0.07444242,67166.0,67149.0,0.1371888]
[1772981369371,0.07944242,67166.0,67149.0,0.1371888]
[1772981369957,0.07444242,67166.0,67149.0,0.1371888]
[1772981370176,0.005,67165.0,67149.0,0.1371888]
[1772981370530,0.00022001,67158.0,67149.0,0.1371888]
[1772981370725,0.00022001,67158.0,67151.0,0.1371888]
[1772981371907,0.0744459,67163.0,67151.0,0.1371888]
[1772981372251,0.00522001,67165.0,67151.0,0.1371888]
[1772981372252,0.0796642,67165.0,67151.0,0.1371888]
[1772981372652,0.07443923,67169.0,67151.0,0.1371888]
[1772981372852,0.0794401,67170.0,67153.0,0.14089866]
[1772981373061,0.0794401,67170.0,67155.0,0.14089866]
[1772981373479,0.0744401,67170.0,67155.0,0.14089866]
[1772981375398,0.07943688,67171.0,67157.0,0.14089866]
[1772981375596,0.005,67171.0,67157.0,0.14089866]
[1772981375798,0.0002121,67172.0,67159.0,0.00486241]
[1772981376062,0.0002121,67172.0,67160.0,0.14724107]
[1772981376408,0.07464855,67172.0,67160.0,0.14724107]
[1772981377016,0.07464855,67172.0,67160.0,0.14237866]
[1772981377263,0.1411041,67171.0,67156.0,0.07445351]
[1772981377409,0.07464855,67172.0,67158.0,0.07445129]
[1772981377410,0.0744391,67169.0,67158.0,0.07445129]
[1772981377610,0.005,67168.0,67159.0,0.00148]
[1772981378019,0.005,67168.0,67160.0,0.00148]
[1772981378481,0.1411041,67167.0,67148.0,0.07446238]
[1772981378805,0.07443871,67170.0,67149.0,0.00148]
[1772981378806,0.005,67162.0,67149.0,0.00148]
[1772981379197,0.005,67162.0,67148.0,0.07446238]
[1772981379370,0.005,67162.0,67150.0,0.00148]
[1772981379573,0.005,67160.0,67151.0,0.07445905]
[1772981379985,0.005,67160.0,67152.0,0.00148]
[1772981380348,0.005,67160.0,67153.0,0.00148]
[1772981380866,0.005,67160.0,67154.0,0.00148]
[1772981381306,0.005,67160.0,67151.0,0.07445905]
[1772981381603,0.005,67160.0,67155.0,0.00148]
[1772981382378,0.005,67158.0,67152.0,0.07445771]
[1772981382624,0.005,67158.0,67153.0,0.00148]
[1772981382829,0.005,67156.0,67152.0,0.00148]
[1772981383145,0.005,67156.0,67147.0,0.0002]
[1772981383146,0.00349348,67152.0,67147.0,0.0002]
[1772981383300,0.0695976,67158.0,67148.0,0.00148]
[1772981383518,0.00497348,67157.0,67149.0,0.00148]
[1772981384736,0.00497348,67155.0,67153.0,0.0002]
[1772981386709,0.07945572,67154.0,67153.0,0.0002]
[1772981386907,0.005,67153.0,67140.0,0.07482068]
[1772981387161,0.005,67153.0,67140.0,0.07494004]
[1772981387362,0.005,67152.0,67141.0,0.00148]
[1772981387729,0.005,67152.0,67142.0,0.00148]
[1772981388133,0.005,67152.0,67140.0,0.07494004]
[1772981388355,0.005,67152.0,67143.0,0.00148]
[1772981388769,0.07445905,67151.0,67144.0,0.00148]
[1772981388932,0.005,67150.0,67140.0,0.07494004]
[1772981389135,0.005,67150.0,67145.0,0.00148]
[1772981389360,0.005,67150.0,67140.0,0.07494004]
[1772981389564,0.005,67150.0,67146.0,0.00148]
[1772981389971,0.005,67150.0,67147.0,0.00148]
[1772981390295,0.00648,67149.0,67148.0,0.00148]
[1772981390848,0.07446238,67148.0,67140.0,0.07494004]
[1772981391106,0.005,67147.0,67141.0,0.00148]
[1772981391308,0.00511841,67147.0,67141.0,0.00148]
[1772981392134,0.00511841,67147.0,67142.0,0.00148]
[1772981392360,0.00511841,67147.0,67139.0,0.0002]
[1772981392653,0.005,67146.0,67140.0,0.00148]
[1772981392998,0.005,67146.0,67136.0,0.0004226]
[1772981392999,0.005,67144.0,67138.0,0.00148]
[1772981393201,0.005,67142.0,67138.0,0.00148]
[1772981393824,0.005,67142.0,67133.0,0.00595]
[1772981394029,0.005,67142.0,67134.0,0.00148]
[1772981394384,0.005,67142.0,67134.0,0.0002]
[1772981394581,0.005,67142.0,67135.0,0.00148]
[1772981394988,0.005,67140.0,67136.0,0.00148]
[1772981395185,0.005,67138.0,67136.0,0.00148]
[1772981395656,0.00148,67137.0,67136.0,0.00148]
[1772981395857,0.005,67136.0,67134.0,0.0002]
[1772981396133,0.005,67136.0,67135.0,0.00148]
[1772981396332,0.00148,67137.0,67134.0,0.0002]
[1772981396563,0.00148,67137.0,67135.0,0.00148]
[1772981396883,0.00648,67137.0,67136.0,0.00148]
[1772981397454,0.08095509,67137.0,67136.0,0.00148]
[1772981398089,0.005,67136.0,67134.0,0.0002]
[1772981398470,0.005,67136.0,67135.0,0.00148]
[1772981399233,0.07447491,67137.0,67135.0,0.00148]
[1772981399560,0.07447236,67139.0,67135.0,0.00148]
[1772981400281,0.07947236,67139.0,67135.0,0.00148]
[1772981400628,0.07947236,67139.0,67133.0,0.00595]